bitfinex/quotes_SOLUSD_20230105
["timestamp","ask_amount","ask_price","bid_price","bid_amount"]
[1672905104017,20.0,13.239,13.231,20.0]
[1672905104573,76.69,13.239,13.231,247.3]
[1672905105165,76.69,13.239,13.231,227.3]
[1672905105376,20.0,13.239,13.231,227.3]
[1672905105587,76.69,13.24,13.23,119.3061]
[1672905105895,76.69,13.24,13.231,20.0]
[1672905111386,76.69,13.24,13.23,119.3061]
[1672905111786,76.69,13.24,13.231,20.0]
[1672905117901,76.69,13.24,13.23,119.3061]
[1672905118312,76.69,13.24,13.231,20.0]
[1672905118550,20.0,13.24,13.231,20.0]
[1672905118758,20.0,13.242,13.231,20.0]
[1672905119588,56.68,13.241,13.231,227.3]
[1672905119802,20.0,13.24,13.231,227.3]
[1672905120311,56.69,13.239,13.231,227.3]
[1672905120528,20.0,13.238,13.231,227.3]
[1672905120736,20.0,13.238,13.23,119.3061]
[1672905121363,20.0,13.241,13.23,119.3061]
[1672905121920,56.69,13.24,13.23,119.3061]
[1672905122228,20.0,13.239,13.23,119.3061]
[1672905122628,56.69,13.238,13.23,119.3061]
[1672905122838,20.0,13.237,13.23,119.3061]
[1672905123475,20.0,13.241,13.23,119.3061]
[1672905123900,56.69,13.24,13.23,119.3061]
[1672905124105,20.0,13.239,13.23,119.3061]
[1672905124631,56.69,13.238,13.23,119.3061]
[1672905124844,20.0,13.237,13.23,119.3061]
[1672905125048,20.0,13.239,13.23,119.3061]
[1672905125468,20.0,13.241,13.23,119.3061]
[1672905126012,56.69,13.24,13.23,119.3061]
[1672905126224,20.0,13.239,13.23,119.3061]
[1672905127482,20.0,13.241,13.23,119.3061]
[1672905127699,56.68,13.241,13.23,119.3061]
[1672905127886,20.0,13.24,13.23,119.3061]
[1672905128096,56.68,13.241,13.23,119.3061]
[1672905128306,20.0,13.24,13.23,119.3061]
[1672905128938,56.69,13.24,13.23,119.3061]
[1672905129144,20.0,13.239,13.23,119.3061]
[1672905129566,20.0,13.24,13.23,119.3061]
[1672905129778,56.69,13.24,13.23,119.3061]
[1672905130005,20.0,13.239,13.23,119.3061]
[1672905130210,20.0,13.241,13.23,119.3061]
[1672905130421,56.69,13.24,13.23,119.3061]
[1672905130626,20.0,13.239,13.231,20.0]
[1672905131374,20.0,13.242,13.231,20.0]
[1672905132641,56.68,13.241,13.231,247.3]
[1672905132830,20.0,13.24,13.231,247.3]
[1672905133571,20.0,13.242,13.231,247.3]
[1672905134430,56.68,13.241,13.231,20.0]
[1672905134625,20.0,13.24,13.231,20.0]
[1672905135054,56.67,13.243,13.231,20.0]
[1672905135248,20.0,13.242,13.231,20.0]
[1672905137255,20.0,13.242,13.232,227.3]
[1672905137477,20.0,13.242,13.233,20.0]
[1672905138188,56.66,13.245,13.235,227.3]
[1672905138399,56.65,13.249,13.236,20.0]
[1672905138611,56.64,13.25,13.238,20.0]
[1672905138838,6.30005072,13.25,13.238,20.0]
[1672905139052,6.30005072,13.25,13.241,20.0]
[1672905140608,20.0,13.249,13.241,20.0]
[1672905142615,20.0,13.25,13.241,20.0]
[1672905142826,20.0,13.25,13.242,227.3]
[1672905143055,20.0,13.25,13.243,20.0]
[1672905144188,20.0,13.25,13.244,227.3]
[1672905145150,20.0,13.25,13.245,20.0]
[1672905146510,20.0,13.25,13.243,247.3]
[1672905147993,20.0,13.25,13.243,20.0]
[1672905159348,20.0,13.254,13.243,20.0]
[1672905159535,20.0,13.254,13.242,247.3]
[1672905159536,20.0,13.253,13.242,227.3]
[1672905159745,20.0,13.252,13.242,227.3]
[1672905159978,76.63,13.252,13.242,20.0]
[1672905160909,20.0,13.252,13.242,20.0]
[1672905161120,20.0,13.253,13.242,20.0]
[1672905161445,56.63,13.253,13.242,20.0]
[1672905161764,20.0,13.252,13.242,20.0]
[1672905161960,76.63,13.252,13.242,20.0]
[1672905162176,20.0,13.252,13.242,20.0]
[1672905162387,56.64,13.251,13.242,20.0]
[1672905162601,20.0,13.25,13.242,20.0]
[1672905163229,20.0,13.254,13.242,20.0]
[1672905163951,56.63,13.253,13.242,20.0]
[1672905164276,20.0,13.252,13.242,20.0]
[1672905164488,33.18489868,13.261,13.242,20.0]
[1672905164698,33.18489868,13.261,13.245,20.0]
[1672905164897,33.18489868,13.267,13.247,227.3]
[1672905165108,56.6,13.26,13.248,20.0]
[1672905165314,56.58,13.264,13.249,227.3]
[1672905165530,56.58,13.264,13.25,20.0]
[1672905165740,56.58,13.264,13.251,227.3]
[1672905165975,20.0,13.263,13.251,227.3]
[1672905166490,56.59,13.262,13.251,227.3]
[1672905166697,20.0,13.261,13.248,247.3]
[1672905167106,56.6,13.26,13.248,247.3]
[1672905167327,20.0,13.259,13.248,247.3]
[1672905167756,56.61,13.258,13.248,247.3]
[1672905167962,20.0,13.257,13.248,247.3]
[1672905170483,20.0,13.257,13.248,227.3]
[1672905170704,20.0,13.257,13.248,20.0]
[1672905172599,76.61,13.257,13.248,20.0]
[1672905173022,76.61,13.257,13.247,283.96]
[1672905173335,76.61,13.257,13.247,227.3]
[1672905174361,76.61,13.257,13.247,283.96]
[1672905174791,76.61,13.257,13.248,20.0]
[1672905181211,20.0,13.257,13.248,20.0]
[1672905181422,20.0,13.257,13.251,20.0]
[1672905183836,20.0,13.257,13.25,20.0]
[1672905184244,20.0,13.257,13.249,227.3]
[1672905184452,76.61,13.257,13.248,227.3]
[1672905184660,76.61,13.257,13.249,20.0]
[1672905185942,76.61,13.257,13.248,227.3]
[1672905186138,76.61,13.257,13.248,20.0]
[1672905186870,20.0,13.257,13.248,20.0]
[1672905187075,20.0,13.257,13.25,20.0]
[1672905189496,20.0,13.257,13.249,227.3]
[1672905189718,76.61,13.257,13.249,20.0]
[1672905192348,76.61,13.257,13.247,227.3]
[1672905192540,121.56437023,13.257,13.247,227.3]
[1672905192749,121.56437023,13.257,13.248,227.3]
[1672905193590,121.56437023,13.257,13.239,247.3]
[1672905194434,121.56437023,13.257,13.239,303.99]
[1672905196971,151.76693023,13.257,13.239,303.99]
[1672905200343,20.0,13.256,13.239,303.99]
[1672905200765,121.57437023,13.255,13.239,303.99]
[1672905200968,20.0,13.254,13.239,303.99]
[1672905201182,20.0,13.253,13.239,303.99]
[1672905201385,76.63,13.253,13.239,303.99]
[1672905202134,76.63,13.253,13.239,283.99]
[1672905208840,76.63,13.253,13.24,20.0]
[1672905209691,121.58437023,13.253,13.24,20.0]
[1672905209887,121.58437023,13.253,13.243,20.0]
[1672905210096,64.95437023,13.253,13.242,227.3]
[1672905211476,64.95437023,13.253,13.24,227.3]
[1672905211694,64.95437023,13.253,13.241,20.0]
[1672905211898,64.95437023,13.253,13.243,20.0]
[1672905212309,64.95437023,13.253,13.242,227.3]
[1672905213489,64.95437023,13.253,13.241,227.3]
[1672905213672,64.95437023,13.253,13.242,20.0]
[1672905213994,20.0,13.252,13.241,227.3]
[1672905214214,136.0168,13.251,13.241,227.3]
[1672905214410,136.0168,13.251,13.24,227.3]
[1672905214411,180.97117023,13.251,13.24,227.3]
[1672905214619,56.64,13.25,13.241,20.0]
[1672905214834,20.0,13.249,13.24,227.3]
[1672905217055,76.64,13.25,13.234,227.3]
[1672905217246,101.60437023,13.248,13.234,227.3]
[1672905217456,20.0,13.247,13.237,20.0]
[1672905217681,121.61437023,13.247,13.237,20.0]
[1672905218000,121.61437023,13.247,13.236,227.3]
[1672905218192,64.95437023,13.247,13.236,227.3]
[1672905218402,64.95437023,13.247,13.235,227.3]
[1672905220838,56.66,13.246,13.237,227.3]
[1672905221148,20.0,13.245,13.237,227.3]
[1672905221559,20.0,13.246,13.237,227.3]
[1672905221765,20.0,13.246,13.235,227.3]
[1672905221985,20.0,13.246,13.236,20.0]
[1672905222300,20.0,13.246,13.237,227.3]
[1672905223346,64.95437023,13.246,13.235,227.3]
[1672905223989,64.95437023,13.246,13.237,227.3]
[1672905225564,64.95437023,13.246,13.235,227.3]
[1672905225801,64.95437023,13.246,13.236,20.0]
[1672905231873,64.95437023,13.246,13.235,227.3]
[1672905238489,64.95437023,13.246,13.236,20.0]
[1672905239762,64.95437023,13.246,13.235,227.3]
[1672905240907,64.95437023,13.246,13.236,20.0]
[1672905241122,64.95437023,13.246,13.237,227.3]
[1672905242161,64.95437023,13.246,13.236,20.0]
[1672905242371,64.95437023,13.246,13.235,227.3]
[1672905242599,56.66,13.245,13.235,227.3]
[1672905242912,20.0,13.244,13.236,20.0]
[1672905243740,20.0,13.245,13.238,20.0]
[1672905244379,20.0,13.247,13.238,20.0]
[1672905244794,20.0,13.247,13.241,20.0]
[1672905245221,20.0,13.25,13.243,20.0]
[1672905246372,20.0,13.25,13.243,247.3]
[1672905247415,20.0,13.25,13.243,20.0]
[1672905251114,20.0,13.25,13.242,227.3]
[1672905251318,20.0,13.25,13.242,20.0]
[1672905266988,44.95437023,13.253,13.244,20.0]
[1672905267309,20.0,13.252,13.244,20.0]
[1672905267512,20.0,13.255,13.246,227.3]
[1672905267729,20.0,13.255,13.247,20.0]
[1672905267924,20.0,13.256,13.247,20.0]
[1672905274474,20.0,13.256,13.249,20.0]
[1672905276562,76.62,13.256,13.249,20.0]
[1672905278367,76.62,13.256,13.247,247.3]
[1672905278562,82.92005072,13.256,13.247,247.3]
[1672905278772,82.92005072,13.256,13.247,20.0]
[1672905279311,76.62,13.256,13.247,20.0]
[1672905280350,20.0,13.256,13.247,20.0]
[1672905290768,56.62,13.255,13.247,20.0]
[1672905290962,20.0,13.254,13.247,20.0]
[1672905291698,20.0,13.255,13.247,20.0]
[1672905292546,20.0,13.256,13.247,20.0]
[1672905293604,56.62,13.255,13.247,20.0]
[1672905293828,20.0,13.254,13.247,20.0]
[1672905294035,76.62,13.256,13.247,20.0]
[1672905296250,56.62,13.256,13.247,20.0]
[1672905296463,30.20256,13.257,13.25,20.0]
[1672905296675,30.20256,13.257,13.252,20.0]
[1672905296887,30.20256,13.257,13.252,247.3]
[1672905297202,56.58,13.264,13.253,20.0]
[1672905297396,20.0,13.263,13.255,20.0]
[1672905297602,30.170495,13.262,13.255,20.0]
[1672905298014,86.760495,13.262,13.255,20.0]
[1672905300861,30.170495,13.262,13.255,20.0]
[1672905301083,86.760495,13.262,13.255,20.0]
[1672905301403,30.170495,13.262,13.255,247.3]
[1672905302016,30.170495,13.262,13.257,20.0]
[1672905307180,30.170495,13.262,13.258,17.0]
[1672905307373,30.170495,13.262,13.257,20.0]
[1672905307584,20.0,13.263,13.257,20.0]
[1672905307794,20.0,13.266,13.257,20.0]
[1672905308009,20.0,13.266,13.258,17.0]
[1672905308212,56.58,13.265,13.258,17.0]
[1672905308420,20.0,13.264,13.258,17.0]
[1672905309490,20.0,13.264,13.257,20.0]
[1672905309896,20.0,13.264,13.258,17.0]
[1672905315788,20.0,13.265,13.258,17.0]
[1672905316640,30.160222,13.266,13.258,17.0]
[1672905316838,30.160222,13.266,13.26,20.0]
[1672905317055,30.160222,13.266,13.261,17.0]
[1672905317365,30.160222,13.266,13.262,20.0]
[1672905317791,30.160222,13.266,13.264,20.0]
[1672905318525,56.55,13.271,13.264,20.0]
[1672905318724,56.55,13.271,13.261,227.3]
[1672905318939,64.95437023,13.27,13.261,227.3]
[1672905319266,44.95437023,13.269,13.261,227.3]
[1672905319478,20.0,13.268,13.261,227.3]
[1672905319687,20.0,13.268,13.258,247.3]
[1672905319899,20.0,13.268,13.26,20.0]
[1672905320092,20.0,13.268,13.261,17.0]
[1672905320509,76.57,13.268,13.261,17.0]
[1672905323573,56.57,13.268,13.261,17.0]
[1672905323787,56.56,13.27,13.262,20.0]
[1672905324103,56.56,13.27,13.264,20.0]
[1672905324316,86.708352,13.271,13.264,20.0]
[1672905324502,30.158352,13.271,13.264,76.58]
[1672905324712,30.158352,13.271,13.266,20.0]
[1672905324919,30.158352,13.271,13.267,17.0]
[1672905325134,30.158352,13.271,13.267,244.3]
[1672905325344,30.158352,13.271,13.268,20.0]
[1672905326710,56.52,13.278,13.268,20.0]
[1672905326944,56.49,13.285,13.27,20.0]
[1672905327133,20.0,13.284,13.271,17.0]
[1672905327343,20.0,13.284,13.271,227.3]
[1672905327676,30.127375,13.281,13.272,20.0]
[1672905328078,56.51,13.28,13.272,20.0]
[1672905328409,56.51,13.28,13.272,247.3]
[1672905329259,56.51,13.28,13.272,20.0]
[1672905329663,56.51,13.28,13.273,17.0]
[1672905329876,56.51,13.28,13.272,20.0]
[1672905330939,101.46437023,13.28,13.27,20.0]
[1672905331130,20.0,13.279,13.27,20.0]
[1672905331560,56.52,13.278,13.27,20.0]
[1672905331780,20.0,13.277,13.27,20.0]
[1672905332414,56.52,13.278,13.271,17.0]
[1672905332625,56.52,13.279,13.272,20.0]
[1672905333023,30.127375,13.281,13.272,20.0]
[1672905333232,30.127375,13.281,13.274,20.0]
[1672905333443,30.127375,13.281,13.275,17.0]
[1672905333657,30.127375,13.281,13.276,247.3]
[1672905333874,30.127375,13.281,13.278,20.0]
[1672905335144,80.5407068,13.293,13.279,56.52]
[1672905335355,80.5407068,13.293,13.281,20.0]
[1672905335567,80.5407068,13.293,13.282,17.0]
[1672905335775,80.5407068,13.293,13.284,20.0]
[1672905336396,80.5407068,13.293,13.287,20.0]
[1672905336607,80.5407068,13.293,13.288,17.0]
[1672905336933,80.5407068,13.293,13.289,20.0]
[1672905338595,80.5407068,13.293,13.287,20.0]
[1672905338822,56.46,13.292,13.287,227.3]
[1672905339242,56.46,13.292,13.287,207.3]
[1672905339465,20.0,13.291,13.287,207.3]
[1672905339782,20.0,13.291,13.276,227.3]
[1672905339966,56.47,13.29,13.278,227.3]
[1672905340175,20.0,13.289,13.278,227.3]
[1672905340617,56.48,13.288,13.278,227.3]
[1672905340810,20.0,13.291,13.278,227.3]
[1672905340811,20.0,13.287,13.278,227.3]
[1672905341017,56.48,13.287,13.278,227.3]
[1672905341227,20.0,13.286,13.278,20.0]
[1672905341878,20.0,13.29,13.278,20.0]
[1672905342302,56.48,13.289,13.278,20.0]
[1672905342494,20.0,13.288,13.277,227.3]
[1672905342704,56.48,13.288,13.278,207.3]
[1672905342915,20.0,13.287,13.278,207.3]
[1672905343336,56.49,13.286,13.278,207.3]
[1672905343543,20.0,13.285,13.278,207.3]
[1672905343877,20.0,13.285,13.275,207.3]
[1672905344091,56.5,13.284,13.275,207.3]
[1672905344299,20.0,13.283,13.275,207.3]
[1672905344704,56.51,13.282,13.27,227.3]
[1672905347463,56.51,13.282,13.273,20.0]
[1672905348693,20.0,13.283,13.275,20.0]
[1672905351442,56.51,13.282,13.275,20.0]
[1672905352181,56.51,13.282,13.273,20.0]
[1672905353454,56.51,13.282,13.27,207.3]
[1672905353648,56.51,13.282,13.273,207.3]
[1672905353859,56.51,13.282,13.274,20.0]
[1672905356294,56.51,13.282,13.273,20.0]
[1672905356704,56.51,13.282,13.272,207.3]
[1672905357027,56.51,13.282,13.273,20.0]
[1672905359025,56.51,13.282,13.272,20.0]
[1672905359231,20.0,13.281,13.269,207.3]
[1672905359433,20.0,13.281,13.267,207.3]
[1672905359639,140.30358559,13.28,13.267,207.3]
[1672905359853,20.0,13.279,13.268,20.0]
[1672905360054,59.41135256,13.279,13.268,20.0]
[1672905360267,56.52,13.278,13.268,20.0]
[1672905360480,20.0,13.277,13.268,20.0]
[1672905360902,56.53,13.276,13.268,20.0]
[1672905361112,20.0,13.275,13.268,20.0]
[1672905361755,20.0,13.277,13.268,20.0]
[1672905362260,56.53,13.276,13.268,20.0]
[1672905362500,20.0,13.275,13.268,20.0]
[1672905363114,20.0,13.277,13.268,20.0]
[1672905363625,56.53,13.276,13.268,20.0]
[1672905363837,20.0,13.275,13.268,20.0]
[1672905364475,56.54,13.275,13.268,20.0]
[1672905364676,20.0,13.274,13.267,207.3]
[1672905365014,56.53,13.276,13.267,207.3]
[1672905365211,20.0,13.275,13.267,207.3]
[1672905365420,20.0,13.275,13.268,20.0]
[1672905366246,20.0,13.277,13.268,20.0]
[1672905366775,56.53,13.276,13.268,20.0]
[1672905366991,20.0,13.275,13.268,20.0]
[1672905367938,20.0,13.277,13.268,20.0]
[1672905368361,56.53,13.276,13.268,20.0]
[1672905368571,20.0,13.275,13.268,20.0]
[1672905369087,20.0,13.276,13.268,20.0]
[1672905369637,56.54,13.275,13.268,20.0]
[1672905369828,20.0,13.274,13.268,20.0]
[1672905370566,20.0,13.276,13.268,20.0]
[1672905370786,20.0,13.276,13.27,20.0]
[1672905370978,20.0,13.277,13.27,20.0]
[1672905377819,20.0,13.277,13.268,20.0]
[1672905378775,20.0,13.277,13.267,227.3]
[1672905378982,20.0,13.277,13.267,207.3]
[1672905378983,56.53,13.276,13.267,207.3]
[1672905379298,20.0,13.275,13.267,207.3]
[1672905379612,20.0,13.275,13.269,227.3]
[1672905379929,20.0,13.277,13.269,227.3]
[1672905380137,20.0,13.278,13.269,283.86]
[1672905380338,20.0,13.278,13.269,207.3]
[1672905380542,56.53,13.277,13.269,207.3]
[1672905380765,20.0,13.276,13.268,20.0]
[1672905386032,20.0,13.276,13.267,207.3]
[1672905386435,76.53,13.276,13.267,207.3]
[1672905386876,20.0,13.276,13.267,207.3]
[1672905387792,20.0,13.276,13.268,20.0]
[1672905388970,20.0,13.276,13.27,227.3]
[1672905389152,20.0,13.278,13.27,227.3]
[1672905390126,20.0,13.278,13.27,207.3]
[1672905390316,59.41135256,13.278,13.268,207.3]
[1672905390527,115.93135256,13.278,13.268,207.3]
[1672905390845,160.31358559,13.278,13.268,207.3]
[1672905391171,20.0,13.277,13.268,207.3]
[1672905391381,20.0,13.276,13.269,207.3]
[1672905391589,160.32358559,13.276,13.269,207.3]
[1672905391911,39.41135256,13.275,13.269,207.3]
[1672905392120,20.0,13.274,13.269,207.3]
[1672905392333,76.54,13.274,13.267,207.3]
[1672905392741,20.0,13.274,13.267,207.3]
[1672905394319,20.0,13.274,13.264,20.0]
[1672905394641,103.79358559,13.274,13.264,20.0]
[1672905394842,56.54,13.273,13.263,207.3]
[1672905395053,20.0,13.272,13.263,207.3]
[1672905395383,20.0,13.272,13.266,20.0]
[1672905395572,20.0,13.272,13.265,207.3]
[1672905395782,20.0,13.273,13.265,207.3]
[1672905396426,20.0,13.273,13.264,20.0]
[1672905396951,59.41135256,13.273,13.266,20.0]
[1672905397145,59.41135256,13.273,13.265,207.3]
[1672905397782,115.95135256,13.273,13.263,207.3]
[1672905398207,160.33358559,13.273,13.263,207.3]
[1672905398632,113.2534,13.272,13.263,207.3]
[1672905398821,20.0,13.271,13.258,20.0]
[1672905399033,160.34358559,13.271,13.258,20.0]
[1672905399251,120.93223303,13.271,13.261,20.0]
[1672905399461,39.41135256,13.27,13.26,207.3]
[1672905399673,20.0,13.269,13.26,207.3]
[1672905400000,59.41135256,13.269,13.26,207.3]
[1672905400618,59.41135256,13.269,13.259,20.0]
[1672905401044,59.41135256,13.269,13.261,20.0]
[1672905401253,59.41135256,13.269,13.26,207.3]
[1672905401990,59.41135256,13.269,13.258,207.3]
[1672905402202,59.41135256,13.269,13.259,20.0]
[1672905402395,59.41135256,13.269,13.261,20.0]
[1672905403796,59.41135256,13.269,13.26,263.9]
[1672905404182,59.41135256,13.269,13.26,20.0]
[1672905404840,59.41135256,13.269,13.262,20.0]
[1672905405029,59.41135256,13.269,13.261,207.3]
[1672905405234,59.41135256,13.269,13.261,263.9]
[1672905405450,59.41135256,13.269,13.261,207.3]
[1672905405990,59.41135256,13.269,13.26,20.0]
[1672905406393,59.41135256,13.269,13.262,20.0]
[1672905407363,59.41135256,13.269,13.26,20.0]
[1672905407762,59.41135256,13.269,13.262,20.0]
[1672905408194,56.54,13.274,13.262,20.0]
[1672905408386,20.0,13.273,13.265,20.0]
[1672905408823,20.0,13.274,13.266,207.3]
[1672905409882,20.0,13.274,13.266,20.0]
[1672905414080,20.0,13.276,13.268,207.3]
[1672905414288,20.0,13.277,13.269,20.0]
[1672905414700,20.0,13.278,13.269,20.0]
[1672905416903,20.0,13.278,13.271,20.0]
[1672905417850,20.0,13.278,13.269,20.0]
[1672905419323,20.0,13.278,13.268,207.3]
[1672905419535,20.0,13.278,13.271,20.0]
[1672905419979,20.0,13.278,13.27,207.3]
[1672905420726,20.0,13.278,13.269,20.0]
[1672905421106,64.38223303,13.278,13.268,207.3]
[1672905421969,64.38223303,13.278,13.268,20.0]
[1672905422475,39.41135256,13.277,13.269,207.3]
[1672905422693,20.0,13.276,13.269,207.3]
[1672905422902,64.38223303,13.276,13.269,207.3]
[1672905423127,140.33358559,13.275,13.269,207.3]
[1672905423323,156.46210349,13.275,13.269,177.474]
[1672905423657,20.0,13.273,13.265,177.474]
[1672905423847,20.0,13.272,13.265,177.474]
[1672905424062,95.96135256,13.272,13.265,177.474]
[1672905424377,39.41135256,13.272,13.265,177.474]
[1672905424590,20.0,13.271,13.26,197.474]
[1672905424784,20.0,13.271,13.263,20.0]
[1672905426277,20.0,13.271,13.262,177.474]
[1672905426487,44.38223303,13.273,13.263,20.0]
[1672905426681,20.0,13.272,13.265,20.0]
[1672905426900,20.0,13.276,13.265,20.0]
[1672905427108,20.0,13.276,13.267,177.474]
[1672905427639,64.38223303,13.276,13.267,177.474]
[1672905428059,20.0,13.274,13.264,177.474]
[1672905428380,99.92210349,13.273,13.264,177.474]
[1672905428568,40.0,13.272,13.264,177.474]
[1672905428778,119.92210349,13.272,13.264,177.474]
[1672905428987,39.41135256,13.271,13.264,177.474]
[1672905429197,20.0,13.27,13.261,177.474]
[1672905429741,56.56,13.269,13.261,177.474]
[1672905429951,20.0,13.268,13.261,177.474]
[1672905430161,20.0,13.268,13.259,177.474]
[1672905431089,36.1285179,13.268,13.259,177.474]
[1672905431306,75.53987046,13.268,13.258,177.474]
[1672905432474,59.41135256,13.268,13.258,177.474]
[1672905435528,59.41135256,13.268,13.26,177.474]
[1672905435948,59.41135256,13.268,13.26,234.074]
[1672905436257,59.41135256,13.268,13.26,177.474]
[1672905436455,59.41135256,13.268,13.258,177.474]
[1672905436669,20.0,13.268,13.262,20.0]
[1672905436897,59.41135256,13.271,13.261,177.474]
[1672905437091,59.41135256,13.271,13.261,234.074]
[1672905437298,59.41135256,13.271,13.261,177.474]
[1672905437740,59.41135256,13.271,13.259,20.0]
[1672905438145,59.41135256,13.271,13.261,177.474]
[1672905438893,16.1285179,13.27,13.261,177.474]
[1672905439113,20.0,13.269,13.261,177.474]
[1672905439299,20.0,13.269,13.26,20.0]
[1672905439509,16.1285179,13.268,13.262,177.474]
[1672905439719,20.0,13.267,13.262,177.474]
[1672905440685,20.0,13.267,13.26,20.0]
[1672905441315,20.0,13.267,13.262,177.474]
[1672905441630,20.0,13.27,13.263,20.0]
[1672905442457,20.0,13.27,13.262,177.474]
[1672905442670,16.1285179,13.269,13.262,177.474]
[1672905442875,16.1285179,13.269,13.263,177.474]
[1672905443205,20.0,13.268,13.263,177.474]
[1672905443729,16.1285179,13.267,13.263,177.474]
[1672905443943,16.1285179,13.267,13.26,20.0]
[1672905444134,20.0,13.266,13.26,20.0]
[1672905444347,20.0,13.266,13.262,177.474]
[1672905445319,20.0,13.266,13.259,177.474]
[1672905445536,20.0,13.266,13.26,20.0]
[1672905445849,20.0,13.266,13.262,20.0]
[1672905446039,20.0,13.266,13.261,177.474]
[1672905446774,20.0,13.266,13.26,20.0]
[1672905446982,20.0,13.266,13.259,177.474]
[1672905447514,20.0,13.266,13.262,20.0]
[1672905447725,20.0,13.266,13.261,177.474]
[1672905447938,20.0,13.266,13.261,234.074]
[1672905448151,20.0,13.266,13.261,177.474]
[1672905448347,16.1285179,13.269,13.261,177.474]
[1672905448559,20.0,13.268,13.26,20.0]
[1672905449201,20.0,13.268,13.262,20.0]
[1672905450256,20.0,13.268,13.26,20.0]
[1672905450474,20.0,13.268,13.262,20.0]
[1672905451522,20.0,13.268,13.261,177.474]
[1672905451735,36.1285179,13.268,13.261,177.474]
[1672905451944,36.1285179,13.268,13.26,56.6]
[1672905451945,36.1285179,13.268,13.26,20.0]
[1672905452989,36.1285179,13.268,13.262,20.0]
[1672905453186,36.1285179,13.268,13.261,177.474]
[1672905454053,36.1285179,13.268,13.26,20.0]
[1672905454565,36.1285179,13.268,13.261,177.474]
[1672905455621,36.1285179,13.268,13.259,177.474]
[1672905455825,36.1285179,13.268,13.26,20.0]
[1672905456036,36.1285179,13.268,13.262,20.0]
[1672905456243,36.1285179,13.268,13.261,177.474]
[1672905457827,36.1285179,13.268,13.262,177.474]
[1672905459718,36.1285179,13.268,13.26,20.0]
[1672905459915,36.1285179,13.268,13.259,177.474]
[1672905463191,36.1285179,13.268,13.259,20.0]